[Event "*** Titled Tuesday Blitz"]
[Site "Chess.com"]
[Date "2020.05.05"]
[Round "9"]
[White "Kislov_Oleg"]
[Black "Rytenko_V"]
[Result "1-0"]
[WhiteElo "2346"]
[BlackElo "2470"]
[TimeControl "180+1"]
[EndTime "11:50:07 PDT"]
[Termination "Kislov_Oleg won by resignation"]

1. e4 {[%clk 0:03:00.9]} 1... c5 {[%clk 0:02:59.3]} 2. Nf3 {[%clk 0:03:00.7]}
2... d6 {[%clk 0:02:59.3]} 3. c3 {[%clk 0:03:00.9]} 3... Nf6 {[%clk 0:02:59.6]}
4. Be2 {[%clk 0:03:00.2]} 4... Nc6 {[%clk 0:02:58.9]} 5. d4 {[%clk 0:02:59.8]}
5... cxd4 {[%clk 0:02:59.4]} 6. cxd4 {[%clk 0:02:59.3]} 6... d5 {[%clk
0:02:59.7]} 7. e5 {[%clk 0:02:58.9]} 7... Ne4 {[%clk 0:03:00]} 8. O-O {[%clk
0:02:57.3]} 8... Bg4 {[%clk 0:02:58.9]} 9. h3 {[%clk 0:02:54]} 9... Bh5 {[%clk
0:02:58.2]} 10. Nc3 {[%clk 0:02:43.7]} 10... e6 {[%clk 0:02:57.4]} 11. Be3
{[%clk 0:02:30.9]} 11... Be7 {[%clk 0:02:55]} 12. Qb3 {[%clk 0:02:29.3]} 12...
Qd7 {[%clk 0:02:47.1]} 13. Rac1 {[%clk 0:02:21.1]} 13... O-O {[%clk 0:02:43]}
14. Na4 {[%clk 0:01:53.9]} 14... Rac8 {[%clk 0:02:37.5]} 15. Bb5 {[%clk
0:01:46]} 15... f6 {[%clk 0:02:08.5]} 16. exf6 {[%clk 0:01:33.1]} 16... Bxf6
{[%clk 0:02:03.4]} 17. Ne5 {[%clk 0:01:31.7]} 17... Bxe5 {[%clk 0:02:03.7]} 18.
dxe5 {[%clk 0:01:31.6]} 18... d4 {[%clk 0:01:53.4]} 19. Qd3 {[%clk 0:01:13.1]}
19... Bg6 {[%clk 0:01:27.9]} 20. Bxc6 {[%clk 0:01:12.7]} 20... Rxc6 {[%clk
0:01:27.5]} 21. Qxd4 {[%clk 0:01:07.6]} 21... Qxd4 {[%clk 0:01:08.4]} 22. Bxd4
{[%clk 0:01:07.5]} 22... Ra6 {[%clk 0:01:04.3]} 23. Nc5 {[%clk 0:00:57.8]} 23...
Nxc5 {[%clk 0:01:01.4]} 24. Bxc5 {[%clk 0:00:58.4]} 24... Rd8 {[%clk 0:00:58]}
25. a3 {[%clk 0:00:53.2]} 25... Rd5 {[%clk 0:00:54.1]} 26. Bd6 {[%clk
0:00:53.1]} 26... Rc6 {[%clk 0:00:48.9]} 27. Rxc6 {[%clk 0:00:51.2]} 27... bxc6
{[%clk 0:00:49.8]} 28. Rc1 {[%clk 0:00:50.4]} 28... Be8 {[%clk 0:00:46.2]} 29.
Rc4 {[%clk 0:00:50.1]} 29... Kf7 {[%clk 0:00:42.5]} 30. Ra4 {[%clk 0:00:41.8]}
30... a5 {[%clk 0:00:42.6]} 31. Bc7 {[%clk 0:00:34]} 31... Rb5 {[%clk
0:00:41.7]} 32. Rxa5 {[%clk 0:00:27.4]} 32... Rb7 {[%clk 0:00:40.3]} 33. Bd6
{[%clk 0:00:25.2]} 33... Rxb2 {[%clk 0:00:40.5]} 34. Ra7+ {[%clk 0:00:24.2]}
34... Kg6 {[%clk 0:00:41]} 35. Re7 {[%clk 0:00:23.6]} 35... Bf7 {[%clk 0:00:41]}
36. h4 {[%clk 0:00:21.3]} 36... h5 {[%clk 0:00:40.4]} 37. Rc7 {[%clk 0:00:20.8]}
37... Rc2 {[%clk 0:00:34.1]} 38. a4 {[%clk 0:00:13.8]} 38... Ra2 {[%clk
0:00:34.1]} 39. Ra7 {[%clk 0:00:13.4]} 39... Be8 {[%clk 0:00:30.9]} 40. Bf8
{[%clk 0:00:12.4]} 40... c5 {[%clk 0:00:27.5]} 41. Rxg7+ {[%clk 0:00:09.6]}
41... Kf5 {[%clk 0:00:27.9]} 42. Rg5+ {[%clk 0:00:09.6]} 42... Ke4 {[%clk
0:00:28.1]} 43. Bxc5 {[%clk 0:00:09.7]} 43... Rxa4 {[%clk 0:00:24.2]} 44. Bd6
{[%clk 0:00:07]} 44... Kd5 {[%clk 0:00:22.8]} 45. f3 {[%clk 0:00:06.6]} 45...
Rxh4 {[%clk 0:00:22.2]} 46. Kf2 {[%clk 0:00:05.9]} 46... Ra4 {[%clk 0:00:21.5]}
47. Rg8 {[%clk 0:00:06.1]} 47... Bb5 {[%clk 0:00:19]} 48. Kg3 {[%clk 0:00:06.4]}
48... Ra2 {[%clk 0:00:18.6]} 49. Rg5 {[%clk 0:00:05.8]} 49... Bf1 {[%clk
0:00:18.2]} 50. Kh3 {[%clk 0:00:05.8]} 50... h4 {[%clk 0:00:17.6]} 51. Kxh4
{[%clk 0:00:05.3]} 51... Bxg2 {[%clk 0:00:17.4]} 52. Kg3 {[%clk 0:00:05.7]}
52... Bf1 {[%clk 0:00:16.8]} 53. Rg4 {[%clk 0:00:06]} 53... Be2 {[%clk
0:00:14.1]} 54. Rb4 {[%clk 0:00:05.2]} 54... Kc6 {[%clk 0:00:09.2]} 55. Rf4
{[%clk 0:00:05.6]} 55... Kd7 {[%clk 0:00:07]} 56. Kg4 {[%clk 0:00:06]} 56... Bb5
{[%clk 0:00:07]} 57. Rf7+ {[%clk 0:00:06.2]} 57... Kc6 {[%clk 0:00:07.6]} 58. f4
{[%clk 0:00:06.7]} 58... Kd5 {[%clk 0:00:08.1]} 59. Kg5 {[%clk 0:00:06.9]} 59...
Rg2+ {[%clk 0:00:08.6]} 60. Kf6 {[%clk 0:00:07]} 60... Bd3 {[%clk 0:00:09.2]}
61. Ra7 {[%clk 0:00:05.5]} 61... Rg6+ {[%clk 0:00:08.6]} 62. Kf7 {[%clk
0:00:05.1]} 62... Rg4 {[%clk 0:00:08.9]} 63. Ra5+ {[%clk 0:00:05.7]} 63... Ke4
{[%clk 0:00:08.8]} 64. Ra4+ {[%clk 0:00:06.1]} 64... Kf5 {[%clk 0:00:08.6]} 65.
Rd4 {[%clk 0:00:06.8]} 65... Bc2 {[%clk 0:00:08.4]} 66. Be7 {[%clk 0:00:07.4]}
66... Be4 {[%clk 0:00:07.2]} 67. Bg5 {[%clk 0:00:05.9]} 67... Bd5 {[%clk
0:00:07]} 68. Rd1 {[%clk 0:00:05.3]} 68... Rg2 {[%clk 0:00:07]} 69. Rh1 {[%clk
0:00:05.7]} 69... Rxg5 {[%clk 0:00:05.9]} 70. fxg5 {[%clk 0:00:02.8]} 70... Kxg5
{[%clk 0:00:06.4]} 71. Rg1+ {[%clk 0:00:01.9]} 71... Kf5 {[%clk 0:00:06.1]} 72.
Re1 {[%clk 0:00:02.6]} 72... Bc4 {[%clk 0:00:05.7]} 73. Ke7 {[%clk 0:00:02.9]}
73... Bd5 {[%clk 0:00:06.1]} 74. Kd6 {[%clk 0:00:03.5]} 74... Bc4 {[%clk
0:00:06.6]} 75. Rd1 {[%clk 0:00:04]} 75... Ke4 {[%clk 0:00:06]} 76. Re1+ {[%clk
0:00:03.9]} 76... Kf5 {[%clk 0:00:06.4]} 77. Rh1 {[%clk 0:00:04.5]} 77... Bd5
{[%clk 0:00:06.3]} 78. Rh6 {[%clk 0:00:05]} 78... Bc4 {[%clk 0:00:06.5]} 79.
Rf6+ {[%clk 0:00:05.6]} 79... Kg5 {[%clk 0:00:06.1]} 80. Rxe6 {[%clk 0:00:06.5]}
80... Kf5 {[%clk 0:00:06.6]} 81. Rf6+ {[%clk 0:00:07]} 1-0

[Event "*** Titled Tuesday Blitz"]
[Site "Chess.com"]
[Date "2020.05.05"]
[Round "9"]
[White "wanyaland"]
[Black "sergeikim"]
[Result "1/2-1/2"]
[WhiteElo "2334"]
[BlackElo "2470"]
[TimeControl "180+1"]
[EndTime "11:50:11 PDT"]
[Termination "Game drawn by repetition"]

1. d4 {[%clk 0:03:00.9]} 1... Nf6 {[%clk 0:02:59.2]} 2. c4 {[%clk 0:02:59.4]}
2... g6 {[%clk 0:02:59.3]} 3. Nf3 {[%clk 0:02:53.7]} 3... Bg7 {[%clk 0:02:59.2]}
4. g3 {[%clk 0:02:41.1]} 4... d6 {[%clk 0:02:59]} 5. Bg2 {[%clk 0:02:40.5]} 5...
O-O {[%clk 0:02:58.6]} 6. O-O {[%clk 0:02:41.4]} 6... Nbd7 {[%clk 0:02:58.3]} 7.
Nc3 {[%clk 0:02:41.9]} 7... e5 {[%clk 0:02:58]} 8. e4 {[%clk 0:02:41.5]} 8...
exd4 {[%clk 0:02:57.8]} 9. Nxd4 {[%clk 0:02:41.2]} 9... Re8 {[%clk 0:02:58.3]}
10. Re1 {[%clk 0:02:38.1]} 10... Nc5 {[%clk 0:02:57.8]} 11. b3 {[%clk
0:02:37.5]} 11... c6 {[%clk 0:02:56.2]} 12. h3 {[%clk 0:02:35.2]} 12... a5
{[%clk 0:02:55.3]} 13. Bb2 {[%clk 0:02:23.9]} 13... Qb6 {[%clk 0:02:52.6]} 14.
Rb1 {[%clk 0:02:20.9]} 14... Nfd7 {[%clk 0:02:50.9]} 15. Ba1 {[%clk 0:02:17.6]}
15... Ne5 {[%clk 0:02:49.6]} 16. Re3 {[%clk 0:02:08.3]} 16... Qb4 {[%clk
0:02:36.1]} 17. f4 {[%clk 0:01:56.1]} 17... Ned7 {[%clk 0:02:34.9]} 18. Nc2
{[%clk 0:01:56.1]} 18... Qb6 {[%clk 0:02:34]} 19. Qxd6 {[%clk 0:01:52]} 19...
Nf6 {[%clk 0:01:58.7]} 20. e5 {[%clk 0:01:41.3]} 20... Rd8 {[%clk 0:01:33.8]}
21. Qxd8+ {[%clk 0:01:39.2]} 21... Qxd8 {[%clk 0:01:32.5]} 22. exf6 {[%clk
0:01:39.3]} 22... Bxf6 {[%clk 0:01:26.8]} 23. Rd1 {[%clk 0:01:38.7]} 23... Qf8
{[%clk 0:01:18.3]} 24. Ne4 {[%clk 0:01:26.9]} 24... Nxe4 {[%clk 0:01:14.8]} 25.
Rxe4 {[%clk 0:01:20.9]} 25... Bxa1 {[%clk 0:01:13.1]} 26. Rxa1 {[%clk
0:01:14.4]} 26... Bf5 {[%clk 0:01:11.5]} 27. Re2 {[%clk 0:01:14.5]} 27... Rd8
{[%clk 0:01:01.7]} 28. Ne3 {[%clk 0:01:11]} 28... Qc5 {[%clk 0:00:57.5]} 29. Kh1
{[%clk 0:01:04.3]} 29... Rd3 {[%clk 0:00:52]} 30. Rae1 {[%clk 0:01:01.2]} 30...
a4 {[%clk 0:00:46.3]} 31. bxa4 {[%clk 0:00:56.8]} 31... h5 {[%clk 0:00:39.7]}
32. g4 {[%clk 0:00:51.6]} 32... hxg4 {[%clk 0:00:37]} 33. hxg4 {[%clk
0:00:52.5]} 33... Be6 {[%clk 0:00:36.6]} 34. f5 {[%clk 0:00:42]} 34... gxf5
{[%clk 0:00:32.7]} 35. gxf5 {[%clk 0:00:41.9]} 35... Bd7 {[%clk 0:00:33]} 36.
Be4 {[%clk 0:00:37]} 36... Rd4 {[%clk 0:00:26.6]} 37. Bb1 {[%clk 0:00:32.2]}
37... Rh4+ {[%clk 0:00:23.6]} 38. Kg2 {[%clk 0:00:30.7]} 38... Qe5 {[%clk
0:00:20]} 39. Rh1 {[%clk 0:00:23.8]} 39... Rxh1 {[%clk 0:00:18.1]} 40. Kxh1
{[%clk 0:00:24.7]} 40... Qf4 {[%clk 0:00:15.6]} 41. Kg2 {[%clk 0:00:20.5]} 41...
c5 {[%clk 0:00:13.5]} 42. Nd5 {[%clk 0:00:17.5]} 42... Bc6 {[%clk 0:00:13.3]}
43. Be4 {[%clk 0:00:14.9]} 43... Bxd5 {[%clk 0:00:12.2]} 44. Bxd5 {[%clk
0:00:14.2]} 44... b6 {[%clk 0:00:11.3]} 45. f6 {[%clk 0:00:09.1]} 45... Qxf6
{[%clk 0:00:10.9]} 46. Rf2 {[%clk 0:00:08.9]} 46... Qg5+ {[%clk 0:00:10.7]} 47.
Kf1 {[%clk 0:00:08.3]} 47... Qc1+ {[%clk 0:00:10.3]} 48. Kg2 {[%clk 0:00:08.3]}
48... Qg5+ {[%clk 0:00:09.2]} 49. Kf1 {[%clk 0:00:08]} 49... Qc1+ {[%clk
0:00:08.7]} 50. Kg2 {[%clk 0:00:07.1]} 50... Qa3 {[%clk 0:00:08.3]} 51. Bxf7+
{[%clk 0:00:05.7]} 51... Kg7 {[%clk 0:00:08.5]} 52. Bd5 {[%clk 0:00:06.5]} 52...
Qxa4 {[%clk 0:00:08.5]} 53. Rf7+ {[%clk 0:00:06.8]} 53... Kg6 {[%clk 0:00:08.4]}
54. Rf2 {[%clk 0:00:07.7]} 54... Qa3 {[%clk 0:00:08.2]} 55. Re2 {[%clk
0:00:06.9]} 55... Kg5 {[%clk 0:00:08.2]} 56. Kf2 {[%clk 0:00:07.8]} 56... Kf4
{[%clk 0:00:08.2]} 57. Re4+ {[%clk 0:00:07.7]} 57... Kf5 {[%clk 0:00:08.4]} 58.
Re2 {[%clk 0:00:08.6]} 58... Qc3 {[%clk 0:00:08.2]} 59. Kf1 {[%clk 0:00:08.4]}
59... Kf4 {[%clk 0:00:07.9]} 60. Kf2 {[%clk 0:00:08.8]} 60... Qd4+ {[%clk
0:00:07.1]} 61. Kf1 {[%clk 0:00:09.1]} 61... Kg3 {[%clk 0:00:06.6]} 62. Rg2+
{[%clk 0:00:08.2]} 62... Kf4 {[%clk 0:00:06.5]} 63. Re2 {[%clk 0:00:09.1]} 63...
Qd3 {[%clk 0:00:05.9]} 64. Kf2 {[%clk 0:00:08.9]} 64... Qg3+ {[%clk 0:00:04.4]}
65. Kf1 {[%clk 0:00:09.2]} 65... Qh3+ {[%clk 0:00:04.2]} 66. Kf2 {[%clk
0:00:09.3]} 66... Qh2+ {[%clk 0:00:03.5]} 67. Kf1 {[%clk 0:00:09.3]} 67... Qg3
{[%clk 0:00:03.4]} 68. Rf2+ {[%clk 0:00:08.2]} 68... Ke5 {[%clk 0:00:03.4]} 69.
Re2+ {[%clk 0:00:08]} 69... Kd4 {[%clk 0:00:03.3]} 70. Rg2 {[%clk 0:00:07.8]}
70... Qf4+ {[%clk 0:00:02.5]} 71. Kg1 {[%clk 0:00:08.1]} 71... Qc1+ {[%clk
0:00:03]} 72. Kh2 {[%clk 0:00:08.1]} 72... Qh6+ {[%clk 0:00:03.5]} 73. Kg1
{[%clk 0:00:07.8]} 73... Qe3+ {[%clk 0:00:03.3]} 74. Kh2 {[%clk 0:00:08]} 74...
Qh6+ {[%clk 0:00:02.8]} 75. Kg1 {[%clk 0:00:08.2]} 75... Qe3+ {[%clk 0:00:03.2]}
76. Kh2 {[%clk 0:00:08.4]} 76... Qh6+ {[%clk 0:00:02.8]} 1/2-1/2

[Event "*** Titled Tuesday Blitz"]
[Site "Chess.com"]
[Date "2020.05.05"]
[Round "9"]
[White "Oglob71"]
[Black "oskariot"]
[Result "1/2-1/2"]
[WhiteElo "2479"]
[BlackElo "2605"]
[TimeControl "180+1"]
[EndTime "11:50:22 PDT"]
[Termination "Game drawn by 50-move rule"]

1. d4 {[%clk 0:02:56.1]} 1... Nf6 {[%clk 0:03:00.2]} 2. Nf3 {[%clk 0:02:55]}
2... g6 {[%clk 0:03:00]} 3. c4 {[%clk 0:02:53.4]} 3... c5 {[%clk 0:03:00.6]} 4.
d5 {[%clk 0:02:52.7]} 4... b5 {[%clk 0:03:00.3]} 5. a4 {[%clk 0:02:50.5]} 5...
b4 {[%clk 0:02:59.4]} 6. Qc2 {[%clk 0:02:49.8]} 6... Bg7 {[%clk 0:02:57.9]} 7.
e4 {[%clk 0:02:50.3]} 7... d6 {[%clk 0:02:58.1]} 8. h3 {[%clk 0:02:49.1]} 8...
O-O {[%clk 0:02:58.4]} 9. Bd3 {[%clk 0:02:48.2]} 9... b3 {[%clk 0:02:43.5]} 10.
Qxb3 {[%clk 0:02:47.4]} 10... Na6 {[%clk 0:02:43.8]} 11. O-O {[%clk 0:02:45.6]}
11... Rb8 {[%clk 0:02:43.9]} 12. Qd1 {[%clk 0:02:44.7]} 12... Nb4 {[%clk
0:02:44.4]} 13. Nc3 {[%clk 0:02:44.5]} 13... e6 {[%clk 0:02:43.3]} 14. Bf4
{[%clk 0:02:42.4]} 14... exd5 {[%clk 0:02:09.4]} 15. cxd5 {[%clk 0:02:30.8]}
15... Nxd3 {[%clk 0:01:51.9]} 16. Qxd3 {[%clk 0:02:30]} 16... Rxb2 {[%clk
0:01:51.9]} 17. Rab1 {[%clk 0:02:30.5]} 17... Rxb1 {[%clk 0:01:16.7]} 18. Rxb1
{[%clk 0:02:29.3]} 18... Re8 {[%clk 0:01:14.5]} 19. Nd2 {[%clk 0:02:28.6]} 19...
Nh5 {[%clk 0:00:53.3]} 20. Be3 {[%clk 0:02:27.4]} 20... f5 {[%clk 0:00:43.4]}
21. Rb8 {[%clk 0:02:16.3]} 21... f4 {[%clk 0:00:28]} 22. Bxc5 {[%clk 0:02:16.2]}
22... dxc5 {[%clk 0:00:20.8]} 23. Nb5 {[%clk 0:02:03.1]} 23... Qd7 {[%clk
0:00:10.1]} 24. d6 {[%clk 0:01:58.4]} 24... Nf6 {[%clk 0:00:08]} 25. Nc7 {[%clk
0:01:54.1]} 25... Rd8 {[%clk 0:00:07.6]} 26. e5 {[%clk 0:01:53.1]} 26... Ne8
{[%clk 0:00:07.1]} 27. Qc4+ {[%clk 0:01:49.2]} 27... Qf7 {[%clk 0:00:06.4]} 28.
Qxf7+ {[%clk 0:01:46.2]} 28... Kxf7 {[%clk 0:00:06.6]} 29. Nc4 {[%clk
0:01:45.2]} 29... Nxc7 {[%clk 0:00:06.2]} 30. dxc7 {[%clk 0:01:42.2]} 30... Rd1+
{[%clk 0:00:06.4]} 31. Kh2 {[%clk 0:01:42.1]} 31... Be6 {[%clk 0:00:06.7]} 32.
Nd6+ {[%clk 0:01:41.5]} 32... Ke7 {[%clk 0:00:06.6]} 33. c8=Q {[%clk 0:01:41.4]}
33... Bxc8 {[%clk 0:00:06.9]} 34. Rxc8 {[%clk 0:01:39.1]} 34... Bxe5 {[%clk
0:00:06.9]} 35. Nc4 {[%clk 0:01:38.4]} 35... Bd4 {[%clk 0:00:04.5]} 36. h4
{[%clk 0:01:28.3]} 36... Bxf2 {[%clk 0:00:04.6]} 37. Kh3 {[%clk 0:01:19.8]}
37... h5 {[%clk 0:00:04.7]} 38. g4 {[%clk 0:01:19.8]} 38... fxg3 {[%clk
0:00:04.8]} 39. Kg2 {[%clk 0:01:17.4]} 39... Rg1+ {[%clk 0:00:04.8]} 40. Kf3
{[%clk 0:01:17.8]} 40... Bd4 {[%clk 0:00:05.4]} 41. Rc6 {[%clk 0:01:15]} 41...
Kf7 {[%clk 0:00:05.4]} 42. Nd6+ {[%clk 0:01:12.7]} 42... Ke6 {[%clk 0:00:05.4]}
43. Ne4+ {[%clk 0:01:13.1]} 43... Kd5 {[%clk 0:00:05.8]} 44. Rxg6 {[%clk
0:01:12.2]} 44... Rf1+ {[%clk 0:00:05.5]} 45. Ke2 {[%clk 0:01:10.8]} 45... Rf4
{[%clk 0:00:02.7]} 46. Nxg3 {[%clk 0:01:09.1]} 46... Rxh4 {[%clk 0:00:02.5]} 47.
Rg5+ {[%clk 0:01:09.4]} 47... Kc4 {[%clk 0:00:02.7]} 48. Nxh5 {[%clk 0:01:07.5]}
48... Rh2+ {[%clk 0:00:02.9]} 49. Kf3 {[%clk 0:01:07.6]} 49... Kb4 {[%clk
0:00:03.4]} 50. Nf4 {[%clk 0:01:06.8]} 50... Rf2+ {[%clk 0:00:03.4]} 51. Ke4
{[%clk 0:01:06.3]} 51... Kxa4 {[%clk 0:00:04]} 52. Ne6 {[%clk 0:01:03.5]} 52...
Rd2 {[%clk 0:00:03.5]} 53. Nxc5+ {[%clk 0:01:02]} 53... Bxc5 {[%clk 0:00:04.4]}
54. Rxc5 {[%clk 0:01:02.1]} 54... a5 {[%clk 0:00:05.3]} 55. Ke3 {[%clk
0:01:01.5]} 55... Rd8 {[%clk 0:00:05.5]} 56. Rc7 {[%clk 0:00:59.4]} 56... Kb4
{[%clk 0:00:05.5]} 57. Rb7+ {[%clk 0:00:59.6]} 57... Ka3 {[%clk 0:00:05.8]} 58.
Ke2 {[%clk 0:00:59.3]} 58... a4 {[%clk 0:00:06.3]} 59. Ke1 {[%clk 0:00:59.1]}
59... Ka2 {[%clk 0:00:06.7]} 60. Rb6 {[%clk 0:00:59.5]} 60... a3 {[%clk
0:00:07]} 61. Rb7 {[%clk 0:01:00.1]} 61... Ka1 {[%clk 0:00:07.9]} 62. Rb6 {[%clk
0:01:00.4]} 62... a2 {[%clk 0:00:08.3]} 63. Rb7 {[%clk 0:01:00.1]} 63... Rd4
{[%clk 0:00:08.8]} 64. Rb8 {[%clk 0:00:59.5]} 64... Rd5 {[%clk 0:00:09.3]} 65.
Rb7 {[%clk 0:00:58.1]} 65... Rd6 {[%clk 0:00:09.7]} 66. Rb8 {[%clk 0:00:57.3]}
66... Rd7 {[%clk 0:00:10.2]} 67. Rb6 {[%clk 0:00:56.9]} 67... Rd4 {[%clk
0:00:10.1]} 68. Rb7 {[%clk 0:00:56.7]} 68... Rd3 {[%clk 0:00:10.6]} 69. Rb8
{[%clk 0:00:56.9]} 69... Rd5 {[%clk 0:00:10.1]} 70. Rb6 {[%clk 0:00:57.1]} 70...
Rh5 {[%clk 0:00:10.4]} 71. Kd1 {[%clk 0:00:55.2]} 71... Rh1+ {[%clk 0:00:10.1]}
72. Kc2 {[%clk 0:00:55.1]} 72... Rb1 {[%clk 0:00:10.7]} 73. Rc6 {[%clk 0:00:53]}
73... Rb2+ {[%clk 0:00:11]} 74. Kc1 {[%clk 0:00:52.6]} 74... Rg2 {[%clk
0:00:11.9]} 75. Rc7 {[%clk 0:00:51.9]} 75... Rg5 {[%clk 0:00:12.4]} 76. Rc8
{[%clk 0:00:51.6]} 76... Rg4 {[%clk 0:00:12.7]} 77. Rc7 {[%clk 0:00:51.5]} 77...
Rg3 {[%clk 0:00:13.3]} 78. Rc8 {[%clk 0:00:51.2]} 78... Rg2 {[%clk 0:00:13.6]}
79. Rc7 {[%clk 0:00:51]} 79... Rg8 {[%clk 0:00:13.6]} 80. Rc6 {[%clk 0:00:50.9]}
80... Rg7 {[%clk 0:00:13.9]} 81. Rc5 {[%clk 0:00:51]} 81... Rg6 {[%clk
0:00:14.3]} 82. Rc4 {[%clk 0:00:51]} 82... Rg5 {[%clk 0:00:14.8]} 83. Rc7 {[%clk
0:00:50.8]} 83... Rg1+ {[%clk 0:00:15.7]} 84. Kc2 {[%clk 0:00:50.3]} 84... Rb1
{[%clk 0:00:16.6]} 85. Rc8 {[%clk 0:00:49.5]} 85... Rb6 {[%clk 0:00:16.8]} 86.
Rc7 {[%clk 0:00:49]} 86... Ra6 {[%clk 0:00:17.2]} 87. Rc8 {[%clk 0:00:48.3]}
87... Ra7 {[%clk 0:00:17.3]} 88. Rc6 {[%clk 0:00:48.2]} 88... Ra4 {[%clk
0:00:17.3]} 89. Rc5 {[%clk 0:00:48]} 89... Ra6 {[%clk 0:00:17.3]} 90. Rc7 {[%clk
0:00:47.7]} 90... Re6 {[%clk 0:00:16.2]} 91. Rc8 {[%clk 0:00:43.7]} 91... Re2+
{[%clk 0:00:16.1]} 92. Kc1 {[%clk 0:00:43.9]} 92... Rh2 {[%clk 0:00:16.1]} 93.
Rc7 {[%clk 0:00:43]} 93... Rh1+ {[%clk 0:00:16]} 94. Kc2 {[%clk 0:00:42.4]}
94... Rg1 {[%clk 0:00:16.2]} 95. Rc8 {[%clk 0:00:41.8]} 95... Rg2+ {[%clk
0:00:16]} 96. Kc1 {[%clk 0:00:40.9]} 96... Rg7 {[%clk 0:00:16.9]} 97. Rc6 {[%clk
0:00:40.6]} 97... Re7 {[%clk 0:00:14.1]} 98. Rc5 {[%clk 0:00:40.7]} 98... Rd7
{[%clk 0:00:14.5]} 99. Rc6 {[%clk 0:00:39.8]} 99... Rb7 {[%clk 0:00:14.9]} 100.
Rc5 {[%clk 0:00:39.5]} 100... Rg7 {[%clk 0:00:15.3]} 101. Rc6 {[%clk 0:00:39.5]}
101... Rh7 {[%clk 0:00:15.7]} 102. Rc5 {[%clk 0:00:39.7]} 102... Rf7 {[%clk
0:00:16.2]} 103. Rc6 {[%clk 0:00:40.1]} 103... Rf5 {[%clk 0:00:16.5]} 104. Rc4
{[%clk 0:00:40]} 104... Rh5 {[%clk 0:00:16.9]} 105. Rc7 {[%clk 0:00:39.8]}
105... Rg5 {[%clk 0:00:17.4]} 106. Rc8 {[%clk 0:00:40.1]} 106... Ra5 {[%clk
0:00:17.9]} 107. Rc7 {[%clk 0:00:40.3]} 107... Ra8 {[%clk 0:00:18.4]} 108. Rc6
{[%clk 0:00:40.2]} 108... Ra7 {[%clk 0:00:18.5]} 109. Rc5 {[%clk 0:00:40.4]}
109... Ra6 {[%clk 0:00:18.8]} 110. Rc4 {[%clk 0:00:40.8]} 110... Ra8 {[%clk
0:00:19]} 111. Rc7 {[%clk 0:00:40.8]} 111... Re8 {[%clk 0:00:19]} 112. Rc5
{[%clk 0:00:41]} 112... Rf8 {[%clk 0:00:19.3]} 1/2-1/2